fUST/lending_fUST_20250328
["ID","MTS","AMOUNT","RATE_DAILY","PERIOD"]
[356773112,1743153389318,-171.35,0.0003,10]
[356773116,1743153998126,-91.42944624,0.00028512,2]
[356773117,1743153998150,-669.02624676,0.00028587,2]
[356773118,1743154029088,-291.8215448,0.00028587,2]
[356773119,1743154030099,-2566.91251854,0.00028587,2]
[356773120,1743154030121,-593.38398,0.00028715,2]
[356773121,1743154030147,-255.96733589,0.000299,8]
[356773122,1743154030172,-726.45,0.0002999,3]
[356773123,1743154030194,-8135.30840437,0.0003,10]
[356773124,1743154053127,-989.73059461,0.0003,10]
[356773131,1743154120042,458.65296964,9e-05,2]
[356773139,1743154153166,-464.46216453,0.000299,2]
[356773140,1743154153187,-6160.75022592,0.0002999,2]
[356773141,1743154153211,-46998.86868949,0.0003,10]
[356773142,1743154158103,-11352.15920065,0.0003,10]
[356773144,1743154171094,-490.0,0.0003,10]
[356773145,1743154171208,-179307.90684855,0.0003,10]
[356773146,1743154171228,-1622.76601343,0.0003,120]
[356773147,1743154171248,-400.47516316,0.0003,7]
[356773148,1743154171270,-4107.16681728,0.0003009,2]
[356773149,1743154171291,-240.60968696,0.000301,2]
[356773150,1743154171312,-302.0,0.000301,2]
[356773151,1743154171333,-600.0,0.000301,2]
[356773152,1743154171354,-50000.0,0.000301,2]
[356773153,1743154171375,-159.35,0.00030118,2]
[356773154,1743154171396,-2053.58340864,0.00030126,2]
[356773155,1743154171417,-160.0,0.00030136,3]
[356773156,1743154171438,-418.56810427,0.00030136,3]
[356773157,1743154171458,-12458.93820146,0.00030136,3]
[356773158,1743154171478,-835.12233967,0.00030136,3]
[356773159,1743154171499,-8023.5025447,0.00030136,3]
[356773160,1743154171520,-521.76,0.00030136,10]
[356773161,1743154171541,-567.7132721,0.00030136,10]
[356773162,1743154171562,-500.0,0.00030136,10]
[356773163,1743154171582,-500.0,0.00030136,10]
[356773164,1743154171602,-500.0,0.00030136,10]
[356773165,1743154171622,-500.0,0.00030136,10]
[356773166,1743154171642,-500.0,0.00030136,10]
[356773167,1743154171663,-500.0,0.00030136,10]
[356773168,1743154171683,-500.0,0.00030136,10]
[356773169,1743154171704,-500.0,0.00030136,10]
[356773170,1743154171725,-500.0,0.00030136,10]
[356773171,1743154171745,-500.0,0.00030136,10]
[356773172,1743154171766,-500.0,0.00030136,10]
[356773173,1743154171787,-270.38058058,0.00030136,10]
[356773174,1743154171809,-500.0,0.00030136,10]
[356773175,1743154171830,-500.0,0.00030136,10]
[356773176,1743154171851,-500.0,0.00030136,10]
[356773177,1743154171872,-500.0,0.00030136,10]
[356773178,1743154171892,-500.0,0.00030136,10]
[356773179,1743154171913,-500.0,0.00030136,10]
[356773180,1743154171932,-500.0,0.00030136,10]
[356773181,1743154171953,-500.0,0.00030136,10]
[356773182,1743154171973,-500.0,0.00030136,10]
[356773183,1743154171993,-500.0,0.00030136,10]
[356773184,1743154172014,-500.0,0.00030136,10]
[356773185,1743154172034,-500.0,0.00030136,10]
[356773186,1743154172054,-500.0,0.00030136,10]
[356773187,1743154172076,-500.0,0.00030136,10]
[356773188,1743154172097,-500.0,0.00030136,10]
[356773189,1743154172117,-500.0,0.00030136,10]
[356773190,1743154172142,-500.0,0.00030136,10]
[356773191,1743154172163,-500.0,0.00030136,10]
[356773192,1743154172185,-500.0,0.00030136,10]
[356773193,1743154172206,-500.0,0.00030136,10]
[356773194,1743154172226,-500.0,0.00030136,10]
[356773195,1743154172246,-500.0,0.00030136,10]
[356773196,1743154172266,-531.65604876,0.00030136,10]
[356773197,1743154172286,-502.54278603,0.00030136,10]
[356773198,1743154172307,-500.0,0.00030136,10]
[356773199,1743154172327,-500.0,0.00030136,10]
[356773200,1743154172346,-500.0,0.00030136,10]
[356773201,1743154172366,-500.0,0.00030136,10]
[356773202,1743154172386,-500.0,0.00030136,10]
[356773203,1743154172406,-500.0,0.00030136,10]
[356773204,1743154172426,-736.35,0.00030136,10]
[356773205,1743154172626,-500.0,0.00030136,10]
[356773206,1743154172650,-500.0,0.00030136,10]
[356773207,1743154172670,-500.0,0.00030136,10]
[356773208,1743154172690,-500.0,0.00030136,10]
[356773209,1743154172710,-500.0,0.00030136,10]
[356773210,1743154172729,-500.0,0.00030136,10]
[356773211,1743154172749,-500.0,0.00030136,10]
[356773212,1743154172769,-694.09,0.00030136,10]
[356773213,1743154172790,-500.0,0.00030136,10]
[356773214,1743154172811,-500.0,0.00030136,10]
[356773215,1743154172832,-500.0,0.00030136,10]
[356773216,1743154172852,-500.0,0.00030136,10]
[356773217,1743154172873,-500.0,0.00030136,10]
[356773218,1743154172894,-500.0,0.00030136,10]
[356773219,1743154172914,-500.0,0.00030136,10]
[356773220,1743154172934,-151.0,0.00030136,7]
[356773221,1743154172954,-151.0,0.00030136,7]
[356773222,1743154172973,-151.0,0.00030136,7]
[356773223,1743154172993,-151.0,0.00030136,7]
[356773224,1743154173012,-500.0,0.00030136,10]
[356773225,1743154173033,-251.14625568,0.00030136,10]
[356773226,1743154173054,-151.0,0.00030136,7]
[356773227,1743154173074,-151.0,0.00030136,7]
[356773228,1743154173094,-188.156942,0.00030136,7]
[356773229,1743154173115,-500.0,0.00030136,2]
[356773230,1743154173138,-500.0,0.00030136,10]
[356773231,1743154173159,-500.0,0.00030136,10]
[356773232,1743154173181,-410.54695918,0.00030136,10]
[356773233,1743154173204,-914.07,0.00030136,10]
[356773234,1743154173231,-500.0,0.00030136,10]
[356773235,1743154173258,-500.0,0.00030136,10]
[356773236,1743154173279,-1192.66,0.00030136,10]
[356773237,1743154173301,-500.0,0.00030136,10]
[356773238,1743154173322,-500.0,0.00030136,10]
[356773239,1743154173343,-500.0,0.00030136,10]
[356773240,1743154173364,-811.59,0.00030136,10]
[356773241,1743154173385,-500.0,0.00030136,10]
[356773242,1743154173407,-500.0,0.00030136,10]
[356773243,1743154173430,-500.0,0.00030136,10]
[356773244,1743154173451,-500.0,0.00030136,10]
[356773245,1743154173472,-500.0,0.00030136,10]
[356773246,1743154173494,-703.03,0.00030136,10]
[356773247,1743154173514,-500.0,0.00030136,10]
[356773248,1743154173546,-500.0,0.00030136,10]
[356773249,1743154173568,-560.01,0.00030136,10]
[356773250,1743154173590,-500.0,0.00030136,10]
[356773251,1743154173611,-500.0,0.00030136,10]
[356773252,1743154173632,-500.0,0.00030136,10]
[356773253,1743154173653,-640.66982149,0.00030136,10]
[356773254,1743154173673,-500.0,0.00030136,10]
[356773255,1743154173695,-500.0,0.00030136,10]
[356773256,1743154173717,-500.0,0.00030136,10]
[356773257,1743154173740,-513.6242945,0.00030136,10]
[356773258,1743154173761,-500.0,0.00030136,10]
[356773259,1743154173786,-1542.66,0.00030136,10]
[356773260,1743154173810,-1841.73,0.00030136,10]
[356773261,1743154173832,-500.0,0.00030136,10]
[356773262,1743154173855,-500.0,0.00030136,10]
[356773263,1743154173877,-500.0,0.00030136,10]
[356773264,1743154173899,-1705.7,0.00030136,10]
[356773265,1743154173922,-500.0,0.00030136,10]
[356773266,1743154173944,-500.0,0.00030136,10]
[356773267,1743154173965,-542.83052318,0.00030136,10]
[356773268,1743154173986,-500.0,0.00030136,10]
[356773269,1743154174008,-500.0,0.00030136,2]
[356773270,1743154174030,-500.0,0.00030136,10]
[356773271,1743154174050,-510.38892846,0.00030136,10]
[356773272,1743154174072,-500.0,0.00030136,10]
[356773273,1743154174093,-500.0,0.00030136,10]
[356773274,1743154174114,-500.0,0.00030136,10]
[356773275,1743154174138,-500.0,0.00030136,10]
[356773276,1743154174158,-514.12,0.00030136,10]
[356773277,1743154174180,-961.26,0.00030136,10]
[356773278,1743154174200,-629.7554286,0.00030136,10]
[356773279,1743154174224,-505.84453508,0.00030136,10]
[356773280,1743154174244,-1000.0,0.00030136,10]
[356773281,1743154174265,-500.0,0.00030136,10]
[356773282,1743154174286,-500.0,0.00030136,10]
[356773283,1743154174308,-512.57469617,0.00030136,10]
[356773284,1743154174328,-500.0,0.00030136,10]
[356773285,1743154174349,-500.0,0.00030136,10]
[356773286,1743154174369,-1212.92,0.00030136,10]
[356773287,1743154174389,-601.2,0.00030136,10]
[356773288,1743154174409,-500.0,0.00030136,10]
[356773289,1743154174430,-500.0,0.00030136,10]
[356773290,1743154174451,-1000.0,0.00030136,10]
[356773291,1743154174471,-500.0,0.00030136,10]
[356773292,1743154174495,-500.0,0.00030136,10]
[356773293,1743154174515,-456.98036722,0.00030136,10]
[356773294,1743154174536,-500.0,0.00030136,10]
[356773295,1743154174560,-500.0,0.00030136,10]
[356773296,1743154174581,-500.0,0.00030136,10]
[356773297,1743154174603,-508.85947449,0.00030136,10]
[356773298,1743154174623,-507.39951467,0.00030136,10]
[356773299,1743154174643,-500.0,0.00030136,10]
[356773300,1743154174664,-500.0,0.00030136,10]
[356773301,1743154174685,-500.0,0.00030136,10]
[356773302,1743154174706,-500.0,0.00030136,10]
[356773303,1743154174726,-500.0,0.00030136,10]
[356773304,1743154174747,-500.0,0.00030136,10]
[356773305,1743154174769,-515.76,0.00030136,10]
[356773306,1743154174789,-500.0,0.00030136,10]
[356773307,1743154174811,-500.0,0.00030136,10]
[356773308,1743154174833,-500.0,0.00030136,10]
[356773309,1743154174854,-500.0,0.00030136,10]
[356773310,1743154174876,-679.02,0.00030136,10]
[356773311,1743154174897,-500.0,0.00030136,10]
[356773312,1743154174918,-877.43,0.00030136,10]
[356773313,1743154174938,-794.21,0.00030136,10]
[356773314,1743154174959,-500.0,0.00030136,10]
[356773315,1743154174980,-528.50861315,0.00030136,10]
[356773316,1743154175002,-568.1,0.00030136,10]
[356773317,1743154175148,-500.0,0.00030136,10]
[356773318,1743154175191,-500.0,0.00030136,10]
[356773319,1743154175213,-500.0,0.00030136,10]
[356773320,1743154175234,-500.0,0.00030136,10]
[356773321,1743154175255,-500.0,0.00030136,10]
[356773322,1743154175275,-500.0,0.00030136,10]
[356773323,1743154175296,-522.53260749,0.00030136,10]
[356773324,1743154175315,-506.23564508,0.00030136,10]
[356773325,1743154175336,-500.0,0.00030136,10]
[356773326,1743154175366,-923.74,0.00030136,10]
[356773327,1743154175395,-594.99,0.00030136,10]
[356773328,1743154175419,-500.0,0.00030136,10]
[356773329,1743154175445,-500.0,0.00030136,10]
[356773330,1743154175469,-508.86554949,0.00030136,10]
[356773331,1743154175491,-500.0,0.00030136,10]
[356773332,1743154175515,-743.39,0.00030136,10]
[356773333,1743154175539,-500.0,0.00030136,10]
[356773334,1743154175563,-506.75250236,0.00030136,10]
[356773335,1743154175586,-504.29355225,0.00030136,10]
[356773336,1743154175612,-806.62,0.00030136,10]
[356773337,1743154175634,-506.1454175,0.00030136,10]
[356773338,1743154175657,-500.0,0.00030136,10]
[356773339,1743154175679,-505.03691414,0.00030136,10]
[356773340,1743154175701,-500.0,0.00030136,10]
[356773341,1743154175722,-500.0,0.00030136,10]
[356773342,1743154175744,-500.0,0.00030136,10]
[356773343,1743154175766,-635.88,0.00030136,10]
[356773344,1743154175788,-500.0,0.00030136,10]
[356773345,1743154175812,-551.62,0.00030136,10]
[356773346,1743154175835,-500.0,0.00030136,10]
[356773347,1743154175857,-662.9,0.00030136,10]
[356773348,1743154175878,-500.0,0.00030136,10]
[356773349,1743154175900,-500.0,0.00030136,10]
[356773350,1743154175922,-500.0,0.00030136,10]
[356773351,1743154175943,-500.0,0.00030136,10]
[356773352,1743154175964,-500.0,0.00030136,10]
[356773353,1743154175984,-506.1444872,0.00030136,10]
[356773354,1743154176005,-500.0,0.00030136,10]
[356773355,1743154176031,-627.3,0.00030136,10]
[356773356,1743154176054,-500.0,0.00030136,10]
[356773357,1743154176076,-160.05220346,0.00030136,10]
[356773358,1743154176098,-500.0,0.00030136,10]
[356773359,1743154176119,-500.0,0.00030136,10]
[356773360,1743154176144,-500.0,0.00030136,10]
[356773361,1743154176166,-500.0,0.00030136,10]
[356773362,1743154176189,-533.1,0.00030136,10]
[356773363,1743154176212,-635.86444044,0.00030136,10]
[356773364,1743154176234,-500.0,0.00030136,10]
[356773365,1743154176257,-521.8776413,0.00030136,10]
[356773366,1743154176282,-513.04827038,0.00030136,10]
[356773367,1743154176311,-1097.63,0.00030136,10]
[356773368,1743154176337,-500.0,0.00030136,10]
[356773369,1743154176361,-284.94,0.00030136,7]
[356773370,1743154176385,-638.16081979,0.00030136,10]
[356773371,1743154176407,-268.88826788,0.00030136,10]
[356773372,1743154176430,-500.0,0.00030136,10]
[356773373,1743154176453,-500.0,0.00030136,10]
[356773374,1743154176482,-500.0,0.00030136,10]
[356773375,1743154176508,-654.94,0.00030136,10]
[356773376,1743154176531,-1120.58,0.00030136,10]
[356773377,1743154176554,-500.0,0.00030136,10]
[356773378,1743154176578,-500.0,0.00030136,10]
[356773379,1743154176599,-805.2,0.00030136,10]
[356773380,1743154176621,-500.0,0.00030136,10]
[356773381,1743154176644,-669.9,0.00030136,10]
[356773382,1743154176666,-500.0,0.00030136,10]
[356773383,1743154176688,-500.0,0.00030136,10]
[356773384,1743154176710,-500.0,0.00030136,10]
[356773385,1743154176733,-500.0,0.00030136,10]
[356773386,1743154176756,-500.0,0.00030136,10]
[356773387,1743154176777,-575.87,0.00030136,7]
[356773388,1743154176802,-500.0,0.00030136,10]
[356773389,1743154176826,-531.14562429,0.00030136,10]
[356773390,1743154176848,-500.0,0.00030136,10]
[356773391,1743154176870,-500.0,0.00030136,10]
[356773392,1743154176892,-500.0,0.00030136,10]
[356773393,1743154176919,-500.0,0.00030136,10]
[356773394,1743154176940,-151.0,0.00030136,7]
[356773395,1743154176962,-151.0,0.00030136,7]
[356773396,1743154176984,-151.0,0.00030136,7]
[356773397,1743154177006,-151.0,0.00030136,7]
[356773398,1743154177028,-500.0,0.00030136,10]
[356773399,1743154177053,-500.0,0.00030136,10]
[356773400,1743154177078,-500.0,0.00030136,10]
[356773401,1743154177101,-196.182261,0.00030136,7]
[356773402,1743154177122,-506.25495077,0.00030136,10]
[356773403,1743154177147,-500.0,0.00030136,10]
[356773404,1743154177168,-686.06,0.00030136,10]
[356773405,1743154177190,-542.6,0.00030136,10]
[356773406,1743154177211,-500.0,0.00030136,10]
[356773407,1743154177232,-500.0,0.00030136,10]
[356773408,1743154177252,-864.59,0.00030136,10]
[356773409,1743154177272,-968.63,0.00030136,10]
[356773410,1743154177293,-959.95,0.00030136,10]
[356773411,1743154177314,-500.0,0.00030136,10]
[356773412,1743154177334,-500.0,0.00030136,10]
[356773413,1743154177354,-438.18314783,0.00030136,10]
[356773414,1743154177374,-500.0,0.00030136,10]
[356773415,1743154177394,-500.0,0.00030136,10]
[356773416,1743154177414,-500.0,0.00030136,10]
[356773417,1743154177434,-2335.24,0.00030136,10]
[356773418,1743154177454,-500.0,0.00030136,10]
[356773419,1743154177474,-500.0,0.00030136,10]
[356773420,1743154177494,-500.0,0.00030136,10]
[356773421,1743154177514,-506.11197502,0.00030136,10]
[356773422,1743154177535,-500.0,0.00030136,10]
[356773423,1743154177556,-500.0,0.00030136,10]
[356773424,1743154177724,-811.05,0.00030136,10]
[356773425,1743154177746,-500.0,0.00030136,10]
[356773426,1743154177767,-500.0,0.00030136,10]
[356773427,1743154177786,-465.28304938,0.00030136,10]
[356773428,1743154177809,-500.0,0.00030136,10]
[356773429,1743154177830,-929.87,0.00030136,10]
[356773430,1743154177850,-500.0,0.00030136,10]
[356773431,1743154177871,-500.0,0.00030136,10]
[356773432,1743154177891,-537.16,0.00030136,10]
[356773433,1743154177911,-500.0,0.00030136,10]
[356773434,1743154177932,-1073.92,0.00030136,10]
[356773435,1743154177955,-500.0,0.00030136,10]
[356773436,1743154177975,-500.0,0.00030136,10]
[356773437,1743154178000,-535.56476177,0.00030136,10]
[356773438,1743154178022,-850.77,0.00030136,10]
[356773439,1743154178042,-500.0,0.00030136,10]
[356773440,1743154178062,-1653.06,0.00030136,10]
[356773441,1743154178082,-545.43,0.00030136,10]
[356773442,1743154178103,-201.0135,0.00030136,7]
[356773443,1743154178127,-500.0,0.00030136,10]
[356773444,1743154178155,-719.37,0.00030136,10]
[356773445,1743154178178,-500.0,0.00030136,10]
[356773446,1743154178200,-460.68883037,0.00030136,10]
[356773447,1743154178221,-988.56,0.00030136,10]
[356773448,1743154178241,-500.0,0.00030136,10]
[356773449,1743154178264,-500.0,0.00030136,10]
[356773450,1743154178287,-500.0,0.00030136,10]
[356773451,1743154178309,-500.0,0.00030136,10]
[356773452,1743154178329,-500.0,0.00030136,10]
[356773453,1743154178349,-500.0,0.00030136,10]
[356773454,1743154178371,-1612.16,0.00030136,10]
[356773455,1743154178392,-500.0,0.00030136,10]
[356773456,1743154178413,-562.62569819,0.00030136,10]
[356773457,1743154178432,-500.0,0.00030136,10]
[356773458,1743154178452,-280.57012205,0.00030136,10]
[356773459,1743154178472,-500.0,0.00030136,10]
[356773460,1743154178494,-500.0,0.00030136,10]
[356773461,1743154178515,-500.0,0.00030136,10]
[356773462,1743154178535,-500.0,0.00030136,10]
[356773463,1743154178554,-500.0,0.00030136,10]
[356773464,1743154178575,-500.0,0.00030136,10]
[356773465,1743154178595,-500.0,0.00030136,10]
[356773466,1743154178615,-1918.22,0.00030136,10]
[356773467,1743154178635,-500.0,0.00030136,10]
[356773468,1743154178656,-500.0,0.00030136,10]
[356773469,1743154178676,-561.09,0.00030136,10]
[356773470,1743154178696,-500.0,0.00030136,10]
[356773471,1743154178718,-145.37874786,0.00030136,10]
[356773479,1743154232277,-247.43509108,0.000299,8]
[356773480,1743154232287,-35.47320967,0.0003,10]
[356773481,1743154232299,-124.52679033,0.0003,10]
[356773482,1743154232308,-192.03714367,0.00030038,9]
[356773483,1743154232319,-55.39794741,0.00030038,9]
[356773484,1743154232328,-358.71255009,0.00030118,2]
[356773485,1743154232354,-641.28744991,0.00030118,2]
[356773486,1743154232364,-600.0,0.00030118,2]
[356773487,1743154232373,-236.89795845,0.00030135,2]
[356773488,1743154232382,-160.0,0.00030136,3]
[356773489,1743154232391,-69659.41743475,0.00030136,3]
[356773490,1743154232401,-50000.0,0.00030136,2]
[356773491,1743154232411,-354.62125214,0.00030136,10]
[356773492,1743154232420,-500.0,0.00030136,10]
[356773493,1743154232429,-500.0,0.00030136,10]
[356773494,1743154232438,-500.0,0.00030136,10]
[356773495,1743154232447,-500.0,0.00030136,10]
[356773496,1743154232456,-500.0,0.00030136,10]
[356773497,1743154232466,-500.0,0.00030136,10]
[356773498,1743154232475,-500.0,0.00030136,10]
[356773499,1743154232485,-500.0,0.00030136,10]
[356773500,1743154232494,-502.71205926,0.00030136,10]
[356773501,1743154232503,-500.0,0.00030136,2]
[356773502,1743154232513,-500.0,0.00030136,10]
[356773503,1743154232523,-1033.34,0.00030136,10]
[356773504,1743154232532,-500.0,0.00030136,7]
[356773505,1743154232542,-500.0,0.00030136,10]
[356773506,1743154232552,-1647.69,0.00030136,10]
[356773507,1743154232561,-500.0,0.00030136,10]
[356773508,1743154232571,-500.0,0.00030136,10]
[356773509,1743154232580,-500.0,0.00030136,10]
[356773510,1743154232591,-1546.17,0.00030136,10]
[356773511,1743154232601,-500.0,0.00030136,10]
[356773512,1743154232610,-500.0,0.00030136,10]
[356773513,1743154232620,-902.88,0.00030136,10]
[356773514,1743154232629,-500.0,0.00030136,10]
[356773515,1743154232639,-507.30506436,0.00030136,10]
[356773516,1743154232649,-500.0,0.00030136,10]
[356773517,1743154232659,-524.77937091,0.00030136,10]
[356773518,1743154232669,-500.0,0.00030136,10]
[356773519,1743154232679,-728.15,0.00030136,10]
[356773520,1743154232688,-500.0,0.00030136,10]
[356773521,1743154232698,-500.0,0.00030136,10]
[356773522,1743154232708,-500.0,0.00030136,10]
[356773523,1743154232717,-500.0,0.00030136,10]
[356773524,1743154232727,-500.0,0.00030136,10]
[356773525,1743154232737,-500.0,0.00030136,10]
[356773526,1743154232747,-516.85,0.00030136,10]
[356773527,1743154232756,-500.0,0.00030136,10]
[356773528,1743154232766,-436.163694,0.00030136,7]
[356773529,1743154232776,-436.163694,0.00030136,7]
[356773530,1743154232786,-436.163694,0.00030136,7]
[356773531,1743154232795,-500.0,0.00030136,10]
[356773532,1743154232805,-436.163694,0.00030136,7]
[356773533,1743154232815,-555.63294281,0.00030136,10]
[356773534,1743154232824,-500.0,0.00030136,10]
[356773535,1743154232835,-500.0,0.00030136,10]
[356773536,1743154232845,-500.0,0.00030136,10]
[356773537,1743154232856,-436.163694,0.00030136,7]
[356773538,1743154232866,-436.163694,0.00030136,7]
[356773539,1743154232878,-436.163694,0.00030136,7]
[356773540,1743154232889,-436.163694,0.00030136,7]
[356773541,1743154232898,-1299.68,0.00030136,10]
[356773542,1743154232908,-500.0,0.00030136,10]
[356773543,1743154232917,-500.0,0.00030136,10]
[356773544,1743154232927,-500.0,0.00030136,10]
[356773545,1743154232936,-500.0,0.00030136,10]
[356773546,1743154232945,-500.0,0.00030136,10]
[356773547,1743154232955,-824.19,0.00030136,10]
[356773548,1743154232964,-500.0,0.00030136,10]
[356773549,1743154232973,-500.0,0.00030136,10]
[356773550,1743154232983,-209.591246,0.00030136,7]
[356773551,1743154232992,-500.0,0.00030136,10]
[356773552,1743154233001,-511.42759954,0.00030136,10]
[356773553,1743154233011,-500.0,0.00030136,10]
[356773554,1743154233020,-500.0,0.00030136,10]
[356773555,1743154233029,-500.0,0.00030136,10]
[356773556,1743154233038,-500.0,0.00030136,10]
[356773557,1743154233047,-500.0,0.00030136,10]
[356773558,1743154233057,-500.0,0.00030136,10]
[356773559,1743154233067,-506.15652441,0.00030136,10]
[356773560,1743154233076,-500.0,0.00030136,10]
[356773561,1743154233086,-500.0,0.00030136,10]
[356773562,1743154233096,-514.22,0.00030136,10]
[356773563,1743154233105,-500.0,0.00030136,10]
[356773564,1743154233115,-500.0,0.00030136,10]
[356773565,1743154233124,-500.0,0.00030136,10]
[356773566,1743154233134,-500.0,0.00030136,10]
[356773567,1743154233144,-513.86909748,0.00030136,10]
[356773568,1743154233156,-500.0,0.00030136,10]
[356773569,1743154233165,-500.0,0.00030136,10]
[356773570,1743154233175,-500.0,0.00030136,10]
[356773571,1743154233184,-500.0,0.00030136,10]
[356773572,1743154233194,-534.77210789,0.00030136,10]
[356773573,1743154233204,-500.0,0.00030136,10]
[356773574,1743154233214,-500.0,0.00030136,10]
[356773575,1743154233223,-500.0,0.00030136,10]
[356773576,1743154233234,-500.0,0.00030136,10]
[356773577,1743154233244,-500.0,0.00030136,10]
[356773578,1743154233254,-500.0,0.00030136,10]
[356773579,1743154233263,-500.0,0.00030136,10]
[356773580,1743154233273,-500.0,0.00030136,10]
[356773581,1743154233283,-500.0,0.00030136,10]
[356773582,1743154233292,-500.0,0.00030136,10]
[356773583,1743154233302,-500.0,0.00030136,10]
[356773584,1743154233311,-500.0,0.00030136,10]
[356773585,1743154233321,-500.0,0.00030136,10]
[356773586,1743154233331,-2091.39,0.00030136,10]
[356773587,1743154233342,-151.0,0.00030136,7]
[356773588,1743154233352,-720.66,0.00030136,10]
[356773589,1743154233362,-513.59,0.00030136,10]
[356773590,1743154233371,-151.0,0.00030136,7]
[356773591,1743154233381,-500.0,0.00030136,10]
[356773592,1743154233391,-151.0,0.00030136,7]
[356773593,1743154233400,-151.0,0.00030136,7]
[356773594,1743154233410,-556.92013382,0.00030136,10]
[356773595,1743154233419,-151.0,0.00030136,7]
[356773596,1743154233428,-151.0,0.00030136,7]
[356773597,1743154233438,-505.13458402,0.00030136,10]
[356773598,1743154233448,-151.0,0.00030136,7]
[356773599,1743154233457,-1770.5,0.00030136,10]
[356773600,1743154233467,-151.0,0.00030136,7]
[356773601,1743154233476,-500.0,0.00030136,10]
[356773602,1743154233485,-500.0,0.00030136,10]
[356773603,1743154233495,-151.0,0.00030136,7]
[356773604,1743154233505,-500.0,0.00030136,10]
[356773605,1743154233515,-151.0,0.00030136,7]
[356773606,1743154233527,-151.0,0.00030136,7]
[356773607,1743154233536,-151.0,0.00030136,7]
[356773608,1743154233546,-500.0,0.00030136,10]
[356773609,1743154233555,-1117.59,0.00030136,10]
[356773610,1743154233565,-500.0,0.00030136,10]
[356773611,1743154233576,-500.0,0.00030136,10]
[356773612,1743154233586,-500.0,0.00030136,10]
[356773613,1743154233599,-507.07670389,0.00030136,10]
[356773614,1743154233608,-500.0,0.00030136,10]
[356773615,1743154233618,-500.0,0.00030136,10]
[356773616,1743154233627,-500.0,0.00030136,10]
[356773617,1743154233637,-525.79185196,0.00030136,10]
[356773618,1743154233647,-500.0,0.00030136,5]
[356773619,1743154233656,-500.0,0.00030136,10]
[356773620,1743154233666,-500.0,0.00030136,10]
[356773621,1743154233675,-430.99696481,0.00030136,10]
[356773622,1743154233685,-500.0,0.00030136,10]
[356773623,1743154233695,-500.0,0.00030136,10]
[356773624,1743154233704,-500.0,0.00030136,10]
[356773625,1743154233714,-500.0,0.00030136,10]
[356773626,1743154233724,-151.0,0.00030136,7]
[356773627,1743154233733,-151.0,0.00030136,7]
[356773628,1743154233744,-500.0,0.00030136,10]
[356773629,1743154233755,-151.0,0.00030136,7]
[356773630,1743154233765,-151.0,0.00030136,7]
[356773631,1743154233774,-1079.24,0.00030136,10]
[356773632,1743154233784,-500.0,0.00030136,10]
[356773633,1743154233793,-635.59,0.00030136,10]
[356773634,1743154233803,-500.0,0.00030136,10]
[356773635,1743154233812,-500.0,0.00030136,10]